bitfinex/quotes_BTCUSD_20250406
["timestamp","ask_amount","ask_price","bid_price","bid_amount"]
[1743917738548,1.076663,83522.0,83521.0,0.00437268]
[1743917738751,1.028663,83522.0,83521.0,0.00437268]
[1743917739197,0.868663,83522.0,83521.0,0.00437268]
[1743917740381,0.810562,83522.0,83521.0,0.00437268]
[1743917740998,0.786602,83522.0,83521.0,0.00437268]
[1743917741457,0.741012,83522.0,83521.0,0.00437268]
[1743917742186,0.402772,83522.0,83521.0,0.00437268]
[1743917742388,0.741012,83522.0,83521.0,0.00437268]
[1743917745218,0.991012,83522.0,83521.0,0.00437268]
[1743917745420,0.741012,83522.0,83521.0,0.00437268]
[1743917746439,0.740012,83522.0,83521.0,0.00437268]
[1743917746941,0.741012,83522.0,83521.0,0.00437268]
[1743917748507,0.742012,83522.0,83521.0,0.00437268]
[1743917750253,0.7421757,83522.0,83521.0,0.00437268]
[1743917752001,0.6923757,83522.0,83521.0,0.00437268]
[1743917753185,0.9064617,83522.0,83521.0,0.00437268]
[1743917755763,0.7510157,83522.0,83521.0,0.00437268]
[1743917757106,1.0310157,83522.0,83521.0,0.00437268]
[1743917757306,0.7510157,83522.0,83521.0,0.00437268]
[1743917761304,0.3541357,83522.0,83521.0,0.00437268]
[1743917771309,0.39116505,83522.0,83521.0,0.00437268]
[1743917777100,0.49872909,83522.0,83521.0,0.00437268]
[1743917778054,0.49872909,83522.0,83521.0,0.0034749]
[1743917778763,0.49872909,83522.0,83521.0,0.00142328]
[1743917779339,0.011973,83515.0,83514.0,0.04444106]
[1743917779539,0.519607,83515.0,83514.0,0.04444106]
[1743917779908,0.519607,83515.0,83514.0,0.04151014]
[1743917780591,0.519607,83515.0,83514.0,0.03765936]
[1743917781584,0.519607,83515.0,83514.0,0.03865936]
[1743917788295,0.519607,83515.0,83514.0,0.03898676]
[1743917791880,0.519607,83515.0,83514.0,0.03798676]
[1743917792316,0.519607,83515.0,83514.0,0.03898676]
[1743917802098,0.5197707,83515.0,83514.0,0.03898676]
[1743917804630,0.5197707,83515.0,83514.0,0.0013274]
[1743917806127,0.55682445,83515.0,83514.0,0.0013274]
[1743917807394,0.5197707,83515.0,83514.0,0.0013274]
[1743917810236,0.036975,83501.0,83500.0,5e-08]
[1743917810386,0.036975,83501.0,83491.0,0.004]
[1743917810387,0.544644,83498.0,83497.0,5e-08]
[1743917810595,0.544644,83498.0,83476.0,0.01]
[1743917810596,0.519689,83477.0,83476.0,0.01]
[1743917811386,0.519689,83477.0,83476.0,0.01045474]
[1743917812371,0.519689,83477.0,83476.0,0.01245474]
[1743917813722,0.53187344,83477.0,83476.0,0.01245474]
[1743917814051,0.53187344,83477.0,83476.0,0.01545474]
[1743917814655,0.53187344,83477.0,83476.0,0.01045474]
[1743917815066,0.53187344,83477.0,83476.0,0.01345474]
[1743917815267,0.53187344,83477.0,83476.0,0.01245474]
[1743917815476,0.53187344,83477.0,83476.0,0.01045474]
[1743917815880,0.53187344,83477.0,83476.0,0.01145474]
[1743917817716,0.53187344,83477.0,83476.0,0.01045474]
[1743917817921,0.53287344,83477.0,83476.0,0.01045474]
[1743917818735,0.01318444,83477.0,83476.0,0.01045474]
[1743917818939,0.02516344,83477.0,83476.0,0.01045474]
[1743917819277,0.19287344,83477.0,83476.0,0.01045474]
[1743917820698,0.53287344,83477.0,83476.0,0.01045474]
[1743917828142,0.53287344,83477.0,83476.0,0.01061844]
[1743917835602,0.80287344,83477.0,83476.0,0.01061844]
[1743917835772,0.53287344,83477.0,83476.0,0.01061844]
[1743917840829,0.53320104,83477.0,83476.0,0.01061844]
[1743917841260,0.53220104,83477.0,83476.0,0.01061844]
[1743917841577,0.53420104,83477.0,83476.0,0.01061844]
[1743917842359,0.53520104,83477.0,83476.0,0.01061844]
[1743917842745,0.53420104,83477.0,83476.0,0.01061844]
[1743917842951,0.53220104,83477.0,83476.0,0.01061844]
[1743917843149,0.53420104,83477.0,83476.0,0.01061844]
[1743917843419,0.608569,83477.0,83476.0,0.01061844]
[1743917843599,0.53420104,83477.0,83476.0,0.01061844]
[1743917844365,0.57421045,83477.0,83476.0,0.01061844]
[1743917845631,0.85421045,83477.0,83476.0,0.01061844]
[1743917845834,0.57421045,83477.0,83476.0,0.01061844]
[1743917845976,0.64857841,83477.0,83476.0,0.01061844]
[1743917846179,0.57421045,83477.0,83476.0,0.01061844]
[1743917846380,0.74251045,83477.0,83476.0,0.01061844]
[1743917847137,0.74051045,83477.0,83476.0,0.01061844]
[1743917847465,0.73951045,83477.0,83476.0,0.01061844]
[1743917847965,0.519695,83474.0,83473.0,0.000327]
[1743917848156,0.55670441,83474.0,83473.0,0.00037256]
[1743917848543,1.78355841,83474.0,83473.0,5.6e-07]
[1743917848739,0.55670441,83474.0,83473.0,5.6e-07]
[1743917849354,0.519722,83462.0,83461.0,0.004]
[1743917849562,1.723239,83462.0,83461.0,0.00404556]
[1743917849759,1.63701,83462.0,83461.0,0.00404556]
[1743917850745,0.821929,83462.0,83461.0,0.00404556]
[1743917851706,0.797747,83462.0,83461.0,0.00404556]
[1743917852048,0.742947,83462.0,83461.0,0.00404556]
[1743917852253,0.523722,83462.0,83461.0,0.00404556]
[1743917852442,0.526722,83462.0,83461.0,0.00404556]
[1743917853116,0.53553834,83462.0,83461.0,0.00404556]
[1743917853314,0.53553834,83462.0,83428.0,0.011986]
[1743917853315,0.34,83449.0,83439.0,0.049]
[1743917853493,0.519754,83447.0,83446.0,0.01011467]
[1743917856590,0.519754,83447.0,83446.0,0.01111467]
[1743917860258,0.519754,83447.0,83446.0,0.01011467]
[1743917860428,0.520754,83447.0,83446.0,0.01011467]
[1743917860634,0.521754,83447.0,83446.0,0.01011467]
[1743917866596,0.521754,83447.0,83446.0,0.01027847]
[1743917867002,0.520754,83447.0,83446.0,0.01027847]
[1743917867186,0.519754,83447.0,83446.0,0.01027847]
[1743917867710,0.520754,83447.0,83446.0,0.01027847]
[1743917868027,0.519754,83447.0,83446.0,0.01027847]
[1743917868227,0.521754,83447.0,83446.0,0.01027847]
[1743917868625,0.522754,83447.0,83446.0,0.01027847]
[1743917868950,0.521754,83447.0,83446.0,0.01027847]
[1743917869425,0.523754,83447.0,83446.0,0.01027847]
[1743917882485,0.523754,83447.0,83446.0,0.05707847]
[1743917884827,0.523754,83447.0,83446.0,0.10547847]
[1743917891119,0.521754,83447.0,83446.0,0.10547847]
[1743917891526,0.520754,83447.0,83446.0,0.10547847]
[1743917891731,0.522754,83447.0,83446.0,0.10547847]
[1743917897489,0.522754,83447.0,83446.0,0.13288723]
[1743917898086,0.519754,83447.0,83446.0,0.13288723]
[1743917899785,0.519754,83447.0,83446.0,0.10547847]
[1743917908807,0.749754,83447.0,83446.0,0.10547847]
[1743917908973,0.519754,83447.0,83446.0,0.10547847]
[1743917914826,0.519754,83447.0,83446.0,0.13287674]
[1743917925270,0.519754,83447.0,83446.0,0.10547847]
[1743917927248,0.519754,83447.0,83446.0,0.01027847]
[1743917930555,0.62721733,83447.0,83446.0,0.01027847]
[1743917932277,0.66427785,83447.0,83446.0,0.01027847]
[1743917932484,0.62721733,83447.0,83446.0,0.01027847]
[1743917933179,0.55680997,83447.0,83446.0,0.01027847]
[1743917933385,0.519754,83447.0,83446.0,0.01027847]
[1743917933738,0.521754,83447.0,83446.0,0.01027847]
[1743917934691,0.523754,83447.0,83446.0,0.01027847]
[1743917934899,0.763754,83447.0,83446.0,0.01027847]
[1743917935102,0.523754,83447.0,83446.0,0.01027847]
[1743917935923,1.908338,83447.0,83446.0,0.01027847]
[1743917936143,1.87748202,83447.0,83446.0,0.01027847]
[1743917936599,1.87748202,83447.0,83437.0,0.0003272]
[1743917936600,0.519773,83438.0,83437.0,0.0003272]
[1743917936727,3.21701397,83438.0,83437.0,0.00043639]
[1743917936914,3.47111046,83438.0,83437.0,0.00043639]
[1743917937111,0.388,83431.0,83430.0,0.0001636]
[1743917937373,0.388,83431.0,83430.0,0.00030038]
[1743917937374,1.26279897,83431.0,83430.0,0.00030038]
[1743917937770,2.74050897,83431.0,83430.0,0.00030038]
[1743917937967,2.70649697,83431.0,83430.0,0.00030038]
[1743917938168,2.70649697,83431.0,83430.0,3.8e-07]
[1743917938169,3.40649697,83431.0,83430.0,3.8e-07]
[1743917938348,1.33976353,83431.0,83430.0,3.8e-07]
[1743917938548,1.30776246,83431.0,83430.0,3.8e-07]
[1743917938870,1.34868642,83431.0,83430.0,3.8e-07]
[1743917939600,1.31571113,83431.0,83430.0,3.8e-07]
[1743917939799,1.35266985,83431.0,83430.0,3.8e-07]
[1743917940316,1.35366985,83431.0,83430.0,3.8e-07]
[1743917940465,1.39465994,83431.0,83430.0,3.8e-07]
[1743917940667,1.38965994,83431.0,83430.0,3.8e-07]
[1743917940864,1.80715994,83431.0,83430.0,3.8e-07]
[1743917941069,1.80215994,83431.0,83430.0,3.8e-07]
[1743917941626,1.77020122,83431.0,83430.0,3.8e-07]
[1743917941831,1.76520122,83431.0,83430.0,3.8e-07]
[1743917942189,1.77020122,83431.0,83430.0,3.8e-07]
[1743917942870,1.76520122,83431.0,83430.0,3.8e-07]
[1743917942995,1.76520122,83431.0,83430.0,0.00016418]
[1743917943197,1.77020122,83431.0,83430.0,0.00016418]
[1743917943396,3.84991622,83431.0,83430.0,0.00016418]
[1743917943595,3.85491622,83431.0,83430.0,0.00016418]
[1743917945908,3.15491622,83431.0,83430.0,0.00016418]
[1743917946103,3.42491622,83431.0,83430.0,0.00016418]
[1743917946310,3.15491622,83431.0,83430.0,0.00016418]
[1743917947275,1.07020122,83431.0,83430.0,0.00016418]
[1743917947477,3.30306822,83431.0,83430.0,0.00016418]
[1743917947996,3.16306822,83431.0,83430.0,0.00016418]
[1743917948356,3.13077522,83431.0,83430.0,0.00016418]
[1743917948801,3.83077522,83431.0,83430.0,0.00016418]
[1743917949315,3.29889922,83431.0,83430.0,0.00016418]
[1743917949810,3.38520322,83431.0,83430.0,0.00016418]
[1743917950277,2.62918913,83431.0,83430.0,0.00016418]
[1743917950479,2.76182913,83431.0,83430.0,0.00016418]
[1743917950682,2.71562913,83431.0,83430.0,0.00016418]
[1743917951091,2.42641167,83431.0,83430.0,0.00016418]
[1743917951275,2.40555567,83431.0,83430.0,0.00016418]
[1743917951478,2.39034967,83431.0,83430.0,0.00016418]
[1743917955662,2.39067747,83431.0,83430.0,0.00016418]
[1743917957684,2.54725493,83431.0,83430.0,0.00016418]
[1743917957852,2.58324502,83431.0,83430.0,0.00016418]
[1743917960187,4.03817602,83431.0,83430.0,0.00016418]
[1743917960401,4.18884802,83431.0,83430.0,0.00016418]
[1743917960612,4.04884802,83431.0,83430.0,1.8e-07]
[1743917960769,0.011987,83417.0,83409.0,0.0468]
[1743917960969,0.0663651,83417.0,83409.0,0.0468]
[1743917961575,0.5741961,83417.0,83409.0,0.0468]
[1743917962156,0.5771961,83417.0,83409.0,0.0468]
[1743917962416,0.5801961,83417.0,83409.0,0.0468]
[1743917962631,0.59221693,83417.0,83409.0,0.0468]
[1743917966942,0.53783883,83417.0,83409.0,0.0468]
[1743917968894,0.53783883,83417.0,83416.0,0.0101639]
[1743917973112,0.53783883,83417.0,83416.0,0.0572639]
[1743917983571,0.53783883,83417.0,83416.0,0.0101639]
[1743917984138,0.01802083,83417.0,83416.0,0.0101639]
[1743917984540,0.19783883,83417.0,83416.0,0.0101639]
[1743917986027,0.53783883,83417.0,83416.0,0.0101639]
[1743917994199,0.5749271,83417.0,83416.0,0.0101639]
[1743917995929,0.5752549,83417.0,83416.0,0.0101639]
[1743917999979,0.64962286,83417.0,83416.0,0.0101639]
[1743918000184,0.5752549,83417.0,83416.0,0.0101639]
[1743918008196,0.73183236,83417.0,83416.0,9e-07]
[1743918008551,0.519838,83408.0,83407.0,0.0004505]
[1743918008758,0.519838,83408.0,83407.0,0.00090708]
[1743918009306,0.519838,83408.0,83407.0,8e-08]
[1743918009307,2.71477746,83408.0,83407.0,8e-08]
[1743918009516,0.519851,83402.0,83401.0,0.004]
[1743918009689,0.64275397,83402.0,83401.0,0.004]
[1743918009911,0.65173739,83402.0,83401.0,0.004]
[1743918011419,0.65473739,83402.0,83401.0,0.004]
[1743918011842,0.65773739,83402.0,83401.0,0.004]
[1743918014283,1.19677339,83402.0,83401.0,0.004]
[1743918016352,1.18033039,83402.0,83401.0,0.004]
[1743918016556,1.14423739,83402.0,83401.0,0.004]
[1743918017857,1.06669539,83402.0,83401.0,0.004]
[1743918018627,1.17425902,83402.0,83401.0,0.004]
[1743918018938,0.76530102,83402.0,83401.0,0.004]
[1743918019202,1.23134302,83402.0,83401.0,0.004]
[1743918021003,1.13880502,83402.0,83401.0,0.004]
[1743918022597,1.13880502,83402.0,83401.0,0.0041639]
[1743918023645,1.21317298,83402.0,83401.0,0.0041639]
[1743918023876,1.02688502,83402.0,83401.0,0.0041639]
[1743918025301,0.91932139,83402.0,83401.0,0.0041639]
[1743918025701,0.79310339,83402.0,83401.0,0.0041639]
[1743918026441,0.53483442,83402.0,83401.0,0.0041639]
[1743918027038,0.69719042,83402.0,83401.0,0.0041639]
[1743918028308,0.53483442,83402.0,83401.0,0.0041639]
[1743918030351,0.70322842,83402.0,83401.0,0.0041639]
[1743918032329,0.64819142,83402.0,83401.0,0.0041639]
[1743918034329,0.639208,83402.0,83401.0,0.0041639]
[1743918036975,0.525851,83402.0,83401.0,0.0041639]
[1743918037376,0.722308,83402.0,83401.0,0.0041639]
[1743918038893,0.639208,83402.0,83401.0,0.0041639]
[1743918040379,0.6762486,83402.0,83401.0,0.0041639]
[1743918041884,0.7012486,83402.0,83401.0,0.0041639]
[1743918042286,0.6762486,83402.0,83401.0,0.0041639]
[1743918042495,0.5628916,83402.0,83401.0,0.0041639]
[1743918042695,0.6836286,83402.0,83401.0,0.0041639]
[1743918046914,0.9336286,83402.0,83401.0,0.0041639]
[1743918047109,0.6836286,83402.0,83401.0,0.0041639]
[1743918057302,0.5628916,83402.0,83401.0,0.0041639]
[1743918058957,0.7928916,83402.0,83401.0,0.0041639]
[1743918059155,0.5628916,83402.0,83401.0,0.0041639]
[1743918065093,0.525851,83402.0,83401.0,0.0041639]
[1743918065272,0.525851,83402.0,83401.0,0.0501639]
[1743918070999,0.525851,83402.0,83401.0,0.0041639]
[1743918098141,0.785851,83402.0,83401.0,0.0041639]
[1743918098323,0.525851,83402.0,83401.0,0.0041639]
[1743918111574,0.006,83402.0,83401.0,0.0041639]
[1743918111799,0.01799,83402.0,83401.0,0.0041639]
[1743918112571,0.185851,83402.0,83401.0,0.0041639]
[1743918113536,0.525851,83402.0,83401.0,0.0041639]
[1743918118527,0.805851,83402.0,83401.0,0.0041639]
[1743918118729,0.525851,83402.0,83401.0,0.0041639]
[1743918121586,0.56294598,83402.0,83401.0,0.0041639]
[1743918122898,0.525851,83402.0,83401.0,0.0041639]
[1743918124934,0.5261788,83402.0,83401.0,0.0041639]
[1743918132455,0.5261788,83402.0,83401.0,0.0032695]
[1743918133062,0.5261788,83402.0,83401.0,0.00180134]
[1743918133537,0.35199,83401.0,83400.0,0.00141504]
[1743918133725,0.35199,83399.0,83395.0,0.04525856]
[1743918133924,0.507873,83396.0,83395.0,0.04525856]
[1743918134836,0.519863,83396.0,83395.0,0.04525856]
[1743918135095,0.519863,83396.0,83395.0,0.07947551]
[1743918135215,0.34,83396.0,83395.0,0.18015253]
[1743918135409,0.341,83396.0,83395.0,0.21436948]
[1743918136855,0.34,83396.0,83395.0,0.21436948]
[1743918137270,0.341,83396.0,83395.0,0.21436948]
[1743918137445,0.34,83396.0,83395.0,0.21436948]
[1743918139209,0.34,83396.0,83395.0,0.21453338]
[1743918139364,0.10800584,83402.0,83401.0,0.167863]
[1743918139574,0.10800584,83402.0,83401.0,0.41920717]
[1743918139771,0.10800584,83402.0,83401.0,0.5652399]
[1743918139967,0.0003278,83402.0,83401.0,0.57978075]
[1743918140592,0.0013278,83402.0,83401.0,0.57978075]
[1743918142010,0.0003278,83402.0,83401.0,0.57978075]
[1743918142176,0.0003278,83402.0,83401.0,0.67584296]
[1743918143754,0.0003278,83402.0,83401.0,0.67784296]
[1743918146141,0.0003278,83402.0,83401.0,0.58178075]
[1743918156769,0.2303278,83402.0,83401.0,0.58178075]
[1743918157040,0.0003278,83402.0,83401.0,0.58178075]
[1743918169034,0.0003278,83402.0,83401.0,0.45006075]
[1743918169241,0.0003278,83402.0,83401.0,0.58174075]
[1743918170286,0.0003278,83402.0,83401.0,0.70463843]
[1743918178302,0.0003278,83402.0,83401.0,0.57295843]
[1743918178441,0.0003278,83402.0,83401.0,0.70463843]
[1743918178884,0.0003278,83402.0,83401.0,0.58174075]
[1743918180546,0.0003278,83402.0,83401.0,0.45006075]
[1743918180662,0.0003278,83402.0,83401.0,0.53184075]
[1743918181837,0.0003278,83402.0,83401.0,0.48514075]
[1743918182827,0.2803278,83402.0,83401.0,0.48514075]
[1743918183033,0.0003278,83402.0,83401.0,0.48514075]
[1743918200147,0.179814,83420.0,83413.0,0.011988]
[1743918200351,0.15347804,83428.0,83413.0,0.011988]
[1743918200352,7.628e-05,83419.0,83416.0,0.011988]
[1743918200676,7.628e-05,83419.0,83417.0,0.45633454]
[1743918201677,0.00107628,83419.0,83417.0,0.45633454]
[1743918202000,0.00107628,83419.0,83417.0,0.46832154]
[1743918202263,0.00107628,83419.0,83418.0,0.08399585]
[1743918202518,0.00107628,83419.0,83418.0,0.20689882]
[1743918202704,0.00107628,83419.0,83418.0,0.24085074]
[1743918202934,7.628e-05,83419.0,83418.0,0.24085074]
[1743918203244,0.00107628,83419.0,83418.0,0.24085074]
[1743918203700,0.00307628,83419.0,83418.0,0.24085074]
[1743918203924,0.00407628,83419.0,83418.0,0.24085074]
[1743918204124,0.00407628,83419.0,83418.0,0.15685489]
[1743918204323,0.01406328,83419.0,83418.0,0.15685489]
[1743918204623,0.01406328,83419.0,83418.0,0.28849489]
[1743918205084,0.01406328,83419.0,83418.0,0.15685489]
[1743918205245,0.01406328,83419.0,83418.0,0.28849489]
[1743918205856,0.01606328,83419.0,83418.0,0.28849489]
[1743918206922,0.00407628,83419.0,83418.0,0.28849489]
[1743918208358,0.00407628,83419.0,83418.0,0.15685489]
[1743918208563,0.00407628,83419.0,83418.0,0.28849489]
[1743918211439,0.01606328,83419.0,83418.0,0.28849489]
[1743918212935,0.01606328,83419.0,83418.0,0.33652588]
[1743918213498,0.01606328,83419.0,83418.0,0.28849489]
[1743918213852,0.01606328,83419.0,83418.0,0.15685489]
[1743918214071,0.01606328,83419.0,83418.0,0.28849489]
[1743918215414,0.01606328,83419.0,83418.0,0.28865879]
[1743918216947,0.00407628,83419.0,83418.0,0.28865879]
[1743918219022,0.29407628,83419.0,83418.0,0.28865879]
[1743918219223,0.00407628,83419.0,83418.0,0.28865879]
[1743918221617,0.167823,83421.0,83418.0,0.28865879]
[1743918221795,0.011987,83420.0,83419.0,0.12290297]
[1743918221974,0.011987,83420.0,83419.0,0.15650819]
[1743918222512,0.179814,83420.0,83419.0,0.15650819]
[1743918224947,0.181814,83420.0,83419.0,0.28814819]
[1743918225293,0.182814,83420.0,83419.0,0.28814819]
[1743918225696,0.19763303,83420.0,83419.0,0.28814819]
[1743918230442,0.19796083,83420.0,83419.0,0.28814819]
[1743918232433,0.44796083,83420.0,83419.0,0.28814819]
[1743918232646,0.19796083,83420.0,83419.0,0.28814819]
[1743918243527,0.19796083,83420.0,83419.0,0.28831209]
[1743918244354,0.47796083,83420.0,83419.0,0.28831209]
[1743918244484,0.19796083,83420.0,83419.0,0.28831209]
[1743918245321,0.01814683,83420.0,83419.0,0.33514209]
[1743918245525,0.0033278,83420.0,83419.0,0.28831209]
[1743918250035,0.0033278,83420.0,83419.0,0.51372609]
[1743918251854,0.0013278,83420.0,83419.0,0.51372609]
[1743918252055,0.0003278,83420.0,83419.0,0.51372609]
[1743918252255,0.0003278,83420.0,83419.0,0.51472609]
[1743918253892,0.0003278,83420.0,83419.0,0.57518424]
[1743918260510,0.1177225,83428.0,83422.0,0.167821]
[1743918260666,0.1177225,83428.0,83423.0,0.12290297]
[1743918260866,0.1177225,83428.0,83424.0,0.03344145]
[1743918261068,0.1177225,83428.0,83425.0,0.12290297]
[1743918261399,0.1177225,83428.0,83426.0,0.03343702]
[1743918261568,0.167812,83427.0,83426.0,0.15633999]
[1743918261762,0.1831577,83427.0,83426.0,0.15633999]
[1743918261970,0.0153457,83427.0,83426.0,0.15633999]
[1743918262268,0.1187225,83428.0,83426.0,0.15633999]
[1743918262923,0.1197225,83428.0,83426.0,0.15633999]
[1743918263439,0.1217225,83428.0,83426.0,0.15633999]
[1743918263920,0.1197225,83428.0,83426.0,0.15633999]
[1743918264232,0.1217225,83428.0,83426.0,0.15633999]
[1743918267213,0.13674344,83428.0,83426.0,0.15633999]
[1743918271118,0.01902094,83428.0,83426.0,0.15633999]
[1743918271259,0.01934874,83428.0,83426.0,0.15633999]
[1743918274558,0.01934874,83428.0,83426.0,0.17761852]
[1743918275317,0.01734874,83428.0,83426.0,0.17761852]
[1743918275516,0.01734874,83428.0,83426.0,0.17861852]
[1743918275765,0.01534874,83428.0,83426.0,0.17861852]
[1743918276058,0.01534874,83428.0,83426.0,0.15833999]
[1743918276758,0.01534874,83428.0,83426.0,0.15733999]
[1743918277160,0.01534874,83428.0,83426.0,0.15833999]
[1743918277486,0.01534874,83428.0,83426.0,0.15933999]
[1743918277603,0.01534874,83428.0,83426.0,0.32715199]
[1743918277824,0.01534874,83428.0,83426.0,0.32615199]
[1743918278044,0.0003278,83428.0,83426.0,0.32615199]
[1743918278280,0.0003278,83428.0,83427.0,0.12290297]
[1743918278477,0.0003278,83428.0,83427.0,0.15618543]
[1743918279886,0.0003278,83428.0,83427.0,0.15818543]
[1743918280670,0.0003278,83428.0,83427.0,0.28982543]
[1743918281148,0.0003278,83428.0,83427.0,0.29182543]
[1743918288664,0.0003278,83428.0,83427.0,0.30381143]
[1743918296477,0.0003278,83428.0,83427.0,0.30397533]
[1743918302064,0.0003278,83428.0,83427.0,0.29194933]
[1743918303181,0.0003278,83428.0,83427.0,0.36949479]
[1743918312846,0.0003278,83428.0,83427.0,0.35183533]
[1743918313099,0.0003278,83428.0,83427.0,0.33984933]
[1743918317899,0.0003278,83428.0,83427.0,0.33895503]
[1743918318626,0.0003278,83428.0,83427.0,0.335878]
[1743918319130,0.0003278,83428.0,83427.0,0.32638416]
[1743918333129,0.0003278,83428.0,83427.0,0.03744636]
[1743918333130,0.3523138,83428.0,83427.0,0.03744636]
[1743918333353,0.3523138,83428.0,83427.0,0.0041639]
[1743918343428,0.6123138,83428.0,83427.0,0.0041639]
[1743918343590,0.3523138,83428.0,83427.0,0.0041639]
[1743918348438,0.3523138,83428.0,83427.0,0.0001639]
[1743918348764,0.3523138,83428.0,83427.0,0.0011639]
[1743918348965,0.3523138,83428.0,83427.0,0.0021639]
[1743918349195,0.3523138,83428.0,83427.0,0.0011639]
[1743918349367,0.3523138,83428.0,83427.0,0.0001639]
[1743918349710,0.3523138,83428.0,83427.0,0.0041639]
[1743918365626,0.3523138,83428.0,83427.0,0.0021639]
[1743918365813,0.3523138,83428.0,83427.0,0.0001639]
[1743918365971,0.3523138,83428.0,83427.0,0.0011639]
[1743918367385,0.3523138,83428.0,83427.0,0.0001639]
[1743918370099,0.4468138,83428.0,83427.0,0.0001639]
[1743918371167,0.4478138,83428.0,83427.0,0.0001639]
[1743918374019,0.107486,83428.0,83427.0,0.0001639]
[1743918377766,0.447486,83428.0,83427.0,0.0001639]
[1743918379942,0.401286,83428.0,83427.0,0.0001639]
[1743918380910,0.681286,83428.0,83427.0,0.0001639]
[1743918381023,0.401286,83428.0,83427.0,0.0001639]
[1743918381662,0.352986,83428.0,83427.0,0.0001639]
[1743918382399,0.001,83428.0,83427.0,0.0121499]
[1743918382612,0.001,83428.0,83427.0,0.21945207]
[1743918382823,0.001,83428.0,83427.0,0.21007568]
[1743918383498,0.001,83428.0,83427.0,0.34171568]
[1743918384719,0.0013278,83428.0,83427.0,0.34171568]
[1743918393254,0.3413278,83428.0,83427.0,0.32972968]
[1743918393413,0.5091368,83428.0,83427.0,0.32972968]
[1743918393785,0.5091368,83428.0,83427.0,0.32968968]
[1743918394085,0.3413278,83428.0,83427.0,0.32968968]
[1743918394291,0.5091368,83428.0,83427.0,0.32968968]
[1743918395057,0.5211228,83428.0,83427.0,0.32968968]
[1743918408116,0.5211228,83428.0,83427.0,0.19808968]
[1743918408256,0.5211228,83428.0,83427.0,0.32968968]
[1743918409196,0.5201228,83428.0,83427.0,0.32968968]
[1743918430664,0.3403278,83428.0,83427.0,0.50948668]
[1743918430863,0.3403278,83428.0,83427.0,0.56747265]
[1743918431176,0.0003278,83428.0,83427.0,0.61277265]
[1743918431372,0.2503278,83428.0,83427.0,0.6273135]
[1743918431572,0.0003278,83428.0,83427.0,0.6273135]
[1743918432023,0.0003278,83428.0,83427.0,0.6293135]
[1743918432699,0.0003278,83428.0,83427.0,0.63681129]
[1743918433368,0.0003278,83428.0,83427.0,0.64081129]
[1743918433534,0.0003278,83428.0,83427.0,0.58282532]
[1743918436970,0.0003278,83428.0,83427.0,0.58782532]
[1743918437186,0.0003278,83430.0,83429.0,0.277893]
[1743918437371,0.179701,83472.0,83448.0,0.272852]
[1743918437504,0.00413676,83449.0,83448.0,0.54189582]
[1743918437712,0.00413676,83449.0,83448.0,0.66719332]
[1743918438841,0.00513676,83449.0,83448.0,0.66919332]
[1743918439190,0.00513676,83449.0,83448.0,0.57905194]
[1743918439532,0.00513676,83449.0,83448.0,0.58417194]
[1743918440621,0.00513676,83449.0,83448.0,0.57667415]
[1743918447238,0.00546456,83449.0,83448.0,0.57667415]
[1743918456630,0.24546456,83449.0,83448.0,0.57667415]
[1743918456832,0.00546456,83449.0,83448.0,0.57667415]
[1743918459312,0.00546456,83449.0,83448.0,0.58417051]
[1743918459516,0.16775,83458.0,83453.0,0.167759]
[1743918459739,0.16775,83458.0,83454.0,0.15041575]
[1743918461070,0.16775,83458.0,83454.0,0.15341575]
[1743918462048,0.16779556,83458.0,83454.0,0.15341575]
[1743918462252,0.16779556,83458.0,83454.0,0.15641575]
[1743918465601,0.34,83456.0,83454.0,0.15641575]
[1743918466225,0.34,83456.0,83455.0,0.00749636]
[1743918466407,0.34,83456.0,83455.0,0.1579099]
[1743918466606,0.35202756,83458.0,83455.0,0.1579099]
[1743918466810,0.35202756,83458.0,83456.0,0.12290297]
[1743918467010,0.35202756,83458.0,83457.0,0.02750614]
[1743918467214,0.35202756,83458.0,83457.0,0.12290297]
[1743918467494,0.35202756,83458.0,83457.0,0.15042411]
[1743918468248,0.35202756,83458.0,83457.0,0.16092047]
[1743918470122,0.35202756,83458.0,83457.0,0.16392047]
[1743918472866,0.35202756,83458.0,83457.0,0.15642411]
[1743918474977,0.35202756,83458.0,83457.0,0.15658791]
[1743918475392,0.35235516,83458.0,83457.0,0.15658791]
[1743918476369,0.35235516,83458.0,83457.0,0.03368494]
[1743918476719,0.35235516,83458.0,83457.0,0.0061638]
[1743918482308,0.35235516,83458.0,83457.0,0.12906677]
[1743918482476,0.35235516,83458.0,83457.0,0.15659588]
[1743918487415,0.35235516,83458.0,83457.0,0.28815588]
[1743918491593,0.35235516,83458.0,83457.0,0.03369291]
[1743918492024,0.39845516,83458.0,83457.0,0.0061638]
[1743918495109,0.35235516,83458.0,83457.0,0.0061638]
[1743918501806,0.35235516,83458.0,83457.0,0.00526825]
[1743918502350,0.35235516,83458.0,83457.0,0.00437271]
[1743918508648,0.35235516,83458.0,83457.0,0.12727568]
[1743918508849,0.35235516,83458.0,83457.0,0.15470812]
[1743918513021,0.35235516,83458.0,83457.0,0.03180515]
[1743918513377,0.35235516,83458.0,83457.0,0.00437271]
[1743918514863,0.35235516,83458.0,83457.0,0.03176745]
[1743918519034,0.34037316,83458.0,83457.0,0.15467042]
[1743918522493,0.35235516,83458.0,83457.0,0.15467042]
[1743918522698,0.35235516,83458.0,83457.0,0.03176745]
[1743918523014,0.35235516,83458.0,83457.0,0.00437271]
[1743918582549,0.62235516,83458.0,83457.0,0.00437271]
[1743918582784,0.35235516,83458.0,83457.0,0.00437271]
[1743918594988,0.35172011,83458.0,83457.0,0.00437271]
[1743918595393,0.0003276,83458.0,83457.0,0.41744608]
[1743918595592,0.0003276,83458.0,83457.0,0.41504953]
[1743918595846,0.0003276,83458.0,83457.0,0.45274498]
[1743918596333,0.0003276,83458.0,83457.0,0.44974498]
[1743918596531,0.0003276,83458.0,83457.0,0.53866708]
[1743918596712,0.0003276,83458.0,83457.0,0.54751941]
[1743918596933,0.0003276,83458.0,83457.0,0.5463105]
[1743918597171,0.0003276,83458.0,83457.0,0.5413105]
[1743918597323,0.0003276,83458.0,83457.0,0.5533105]
[1743918597527,0.0003276,83458.0,83457.0,0.5473105]
[1743918597830,0.0003276,83458.0,83457.0,0.5533105]
[1743918600235,0.0003276,83458.0,83457.0,0.4693884]
[1743918601684,0.0003276,83458.0,83457.0,0.4743884]
[1743918601861,0.01,83464.0,83463.0,0.275219]
[1743918602066,0.01,83464.0,83463.0,0.45015171]
[1743918603109,0.0003276,83473.0,83470.0,0.275204]
[1743918603279,0.0003276,83473.0,83472.0,0.31714382]
[1743918603479,0.0003276,83473.0,83472.0,0.45003035]
[1743918604004,0.0003276,83473.0,83472.0,0.47503035]
[1743918604165,0.0003276,83473.0,83472.0,0.48003035]
[1743918604368,0.00037316,83473.0,83472.0,0.48003035]